[Event "Titled Tuesday Blitz July 18 Late 2023"]
[White "Sarkar, Justin"]
[Black "KorolDimitriy75"]
[WhiteFideId "2010011"]
[WhiteElo "2252"]
[BlackElo "2412"]
[Result "0-1"]
[Round "7"]
[TimeControl "180+2"]
[Date "2023.07.18"]
[WhiteClock "0:00:00"]
[BlackClock "0:00:16"]
[Board "111"]

1. e4 {[%clk 0:02:54]}  c5 {[%clk 0:03:00]} 2. Nf3 {[%clk 0:02:53]}  d6 {[%clk 0:03:00]} 3. d4 {[%clk 0:02:52]}  cxd4 {[%clk 0:03:01]} 4. Nxd4 {[%clk 0:02:52]}  Nf6 {[%clk 0:03:01]} 5. Nc3 {[%clk 0:02:52]}  g6 {[%clk 0:03:02]} 6. Be3 {[%clk 0:02:48]}  Bg7 {[%clk 0:03:02]} 7. f3 {[%clk 0:02:47]}  O-O {[%clk 0:03:03]} 8. Qd2 {[%clk 0:02:46]}  Nc6 {[%clk 0:03:03]} 9. Bc4 {[%clk 0:02:46]}  Bd7 {[%clk 0:03:03]} 10. O-O {[%clk 0:02:45]}  Rc8 {[%clk 0:02:43]} 11. Bb3 {[%clk 0:02:44]}  a6 {[%clk 0:02:43]} 12. a4 {[%clk 0:02:43]}  Na5 {[%clk 0:02:31]} 13. Ba2 {[%clk 0:02:09]}  Qc7 {[%clk 0:02:30]} 14. Bh6 {[%clk 0:01:53]}  Nc4 {[%clk 0:02:14]} 15. Bxc4 {[%clk 0:01:52]}  Qxc4 {[%clk 0:02:15]} 16. Bxg7 {[%clk 0:01:50]}  Kxg7 {[%clk 0:02:16]} 17. a5 {[%clk 0:01:41]}  Rfd8 {[%clk 0:02:00]} 18. Rfd1 {[%clk 0:01:35]}  e5 {[%clk 0:01:30]} 19. Nf5+ {[%clk 0:01:06]}  Bxf5 {[%clk 0:01:22]} 20. exf5 {[%clk 0:01:06]}  d5 {[%clk 0:01:14]} 21. fxg6 {[%clk 0:00:52]}  hxg6 {[%clk 0:01:15]} 22. Qg5 {[%clk 0:00:49]}  d4 {[%clk 0:01:07]} 23. Na4 {[%clk 0:00:21]}  Qb5 {[%clk 0:00:56]} 24. c3 {[%clk 0:00:04]}  Rd5 {[%clk 0:00:40]} 25. c4 {[%clk 0:00:02]}  Rxc4 {[%clk 0:00:35]} 26. Nb6 {[%clk 0:00:02]}  Rc2 {[%clk 0:00:16]} 27. Nxd5 {[%clk 0:00:01]}  Qxd5 {[%clk 0:00:17]} 28. Rd2 {[%clk 0:00:00]}  Rc5 {[%clk 0:00:16]} 0-1


[Site "https://www.chess.com"]

[Event "Titled Tuesday Blitz July 18 Late 2023"]
[White "Cardenas Carbajal, Nilson"]
[Black "Zenin, Dmitry"]
[WhiteFideId "8401128"]
[BlackFideId "4127897"]
[WhiteElo "2194"]
[BlackElo "2411"]
[Result "1-0"]
[Round "7"]
[TimeControl "180+2"]
[Date "2023.07.18"]
[WhiteClock "0:00:43"]
[BlackClock "0:01:08"]
[Board "112"]

1. e4 {[%clk 0:02:55]}  e5 {[%clk 0:02:59]} 2. Nf3 {[%clk 0:02:54]}  Nc6 {[%clk 0:02:59]} 3. Bc4 {[%clk 0:02:53]}  Bc5 {[%clk 0:02:58]} 4. c3 {[%clk 0:02:53]}  Nf6 {[%clk 0:02:58]} 5. d4 {[%clk 0:02:53]}  exd4 {[%clk 0:02:58]} 6. cxd4 {[%clk 0:02:54]}  Bb4+ {[%clk 0:02:58]} 7. Nc3 {[%clk 0:02:55]}  Nxe4 {[%clk 0:02:57]} 8. O-O {[%clk 0:02:55]}  Bxc3 {[%clk 0:02:57]} 9. d5 {[%clk 0:02:55]}  Bf6 {[%clk 0:02:57]} 10. Re1 {[%clk 0:02:54]}  Ne7 {[%clk 0:02:57]} 11. Rxe4 {[%clk 0:02:53]}  d6 {[%clk 0:02:57]} 12. Bg5 {[%clk 0:02:52]}  Bxg5 {[%clk 0:02:56]} 13. Nxg5 {[%clk 0:02:52]}  h6 {[%clk 0:02:56]} 14. Qe2 {[%clk 0:02:49]}  hxg5 {[%clk 0:02:56]} 15. Re1 {[%clk 0:02:47]}  Be6 {[%clk 0:02:55]} 16. dxe6 {[%clk 0:02:45]}  f6 {[%clk 0:02:55]} 17. h4 {[%clk 0:02:12]}  gxh4 {[%clk 0:02:17]} 18. Qg4 {[%clk 0:01:54]}  Kf8 {[%clk 0:02:14]} 19. Qh3 {[%clk 0:01:46]}  g5 {[%clk 0:01:43]} 20. f4 {[%clk 0:01:42]}  d5 {[%clk 0:01:28]} 21. fxg5 {[%clk 0:01:32]}  fxg5 {[%clk 0:01:15]} 22. Qf3+ {[%clk 0:01:09]}  Kg7 {[%clk 0:01:15]} 23. Qf7+ {[%clk 0:01:05]}  Kh6 {[%clk 0:01:15]} 24. Qf6+ {[%clk 0:00:54]}  Kh7 {[%clk 0:01:08]} 25. Rxh4+ {[%clk 0:00:43]} 1-0


[Site "https://www.chess.com"]

[Event "Titled Tuesday Blitz July 18 Late 2023"]
[White "UgarteCesar"]
[Black "Troff, Kayden"]
[BlackFideId "2047896"]
[WhiteElo "2250"]
[BlackElo "2767"]
[Result "0-1"]
[Round "7"]
[TimeControl "180+2"]
[Date "2023.07.18"]
[WhiteClock "0:01:07"]
[BlackClock "0:01:42"]
[Board "113"]

1. d4 {[%clk 0:03:00]}  Nf6 {[%clk 0:02:59]} 2. Bf4 {[%clk 0:03:00]}  g6 {[%clk 0:02:58]} 3. e3 {[%clk 0:03:00]}  Bg7 {[%clk 0:02:58]} 4. h3 {[%clk 0:03:01]}  d6 {[%clk 0:02:57]} 5. Nf3 {[%clk 0:03:01]}  O-O {[%clk 0:02:57]} 6. Be2 {[%clk 0:03:02]}  Nc6 {[%clk 0:02:56]} 7. O-O {[%clk 0:03:02]}  Nd7 {[%clk 0:02:56]} 8. c3 {[%clk 0:03:00]}  e5 {[%clk 0:02:56]} 9. dxe5 {[%clk 0:03:00]}  Ndxe5 {[%clk 0:02:55]} 10. Na3 {[%clk 0:02:59]}  Be6 {[%clk 0:02:50]} 11. Nd4 {[%clk 0:02:50]}  Bd7 {[%clk 0:02:46]} 12. Nf3 {[%clk 0:02:47]}  Re8 {[%clk 0:02:40]} 13. Nc4 {[%clk 0:02:46]}  Qe7 {[%clk 0:02:36]} 14. Ncxe5 {[%clk 0:02:43]}  dxe5 {[%clk 0:02:11]} 15. Bg3 {[%clk 0:02:40]}  Rad8 {[%clk 0:02:10]} 16. Qb3 {[%clk 0:02:37]}  Na5 {[%clk 0:02:05]} 17. Qc2 {[%clk 0:02:35]}  e4 {[%clk 0:01:58]} 18. Nd4 {[%clk 0:02:30]}  c5 {[%clk 0:01:53]} 19. Nb3 {[%clk 0:02:29]}  Ba4 {[%clk 0:01:52]} 20. c4 {[%clk 0:01:48]}  Nc6 {[%clk 0:01:46]} 21. a3 {[%clk 0:01:07]}  Na5 {[%clk 0:01:42]} 0-1


[Site "https://www.chess.com"]

[Event "Titled Tuesday Blitz July 18 Late 2023"]
[White "Sadovsky, Artem"]
[Black "AndresDelgado77"]
[WhiteFideId "4155840"]
[WhiteElo "2551"]
[BlackElo "2341"]
[Result "1-0"]
[Round "7"]
[TimeControl "180+2"]
[Date "2023.07.18"]
[WhiteClock "0:00:50"]
[BlackClock "0:00:00"]
[Board "114"]

1. Nf3 {[%clk 0:02:49]}  d5 {[%clk 0:02:57]} 2. e3 {[%clk 0:02:50]}  Nf6 {[%clk 0:02:50]} 3. c4 {[%clk 0:02:50]}  c6 {[%clk 0:02:49]} 4. b3 {[%clk 0:02:51]}  Bf5 {[%clk 0:02:47]} 5. Bb2 {[%clk 0:02:51]}  e6 {[%clk 0:02:47]} 6. Be2 {[%clk 0:02:51]}  h6 {[%clk 0:02:47]} 7. O-O {[%clk 0:02:52]}  Nbd7 {[%clk 0:02:47]} 8. d3 {[%clk 0:02:52]}  Be7 {[%clk 0:02:41]} 9. Nbd2 {[%clk 0:02:53]}  O-O {[%clk 0:02:40]} 10. Qc2 {[%clk 0:02:53]}  Bh7 {[%clk 0:02:39]} 11. Rad1 {[%clk 0:02:53]}  a5 {[%clk 0:02:38]} 12. a3 {[%clk 0:02:53]}  Rc8 {[%clk 0:02:32]} 13. Qc1 {[%clk 0:02:53]}  b5 {[%clk 0:02:31]} 14. Qa1 {[%clk 0:02:43]}  Nc5 {[%clk 0:02:04]} 15. Ne5 {[%clk 0:02:44]}  dxc4 {[%clk 0:01:57]} 16. dxc4 {[%clk 0:02:38]}  Bc2 {[%clk 0:01:54]} 17. cxb5 {[%clk 0:02:17]}  Bxd1 {[%clk 0:01:49]} 18. Rxd1 {[%clk 0:02:17]}  cxb5 {[%clk 0:01:47]} 19. Bxb5 {[%clk 0:02:17]}  Qb6 {[%clk 0:01:42]} 20. a4 {[%clk 0:02:15]}  Rfd8 {[%clk 0:01:39]} 21. Bd4 {[%clk 0:02:09]}  Qc7 {[%clk 0:01:28]} 22. Nc6 {[%clk 0:01:52]}  Rd5 {[%clk 0:00:58]} 23. Qb1 {[%clk 0:01:33]}  Ng4 {[%clk 0:00:40]} 24. Nf3 {[%clk 0:01:33]}  e5 {[%clk 0:00:35]} 25. Qf5 {[%clk 0:01:29]}  Nxf2 {[%clk 0:00:10]} 26. Kxf2 {[%clk 0:01:18]}  Bd6 {[%clk 0:00:07]} 27. Bc4 {[%clk 0:01:00]}  g6 {[%clk 0:00:06]} 28. Qh3 {[%clk 0:00:51]}  exd4 {[%clk 0:00:01]} 29. Bxd5 {[%clk 0:00:51]}  dxe3+ {[%clk 0:00:00]} 30. Ke2 {[%clk 0:00:50]} 1-0


[Site "https://www.chess.com"]

[Event "Titled Tuesday Blitz July 18 Late 2023"]
[White "Calin, Alexandru"]
[Black "Yeritsyan, Hayk"]
[WhiteFideId "1222961"]
[BlackFideId "13307320"]
[WhiteElo "2315"]
[BlackElo "2483"]
[Result "1-0"]
[Round "7"]
[TimeControl "180+2"]
[Date "2023.07.18"]
[WhiteClock "0:00:03"]
[BlackClock "0:00:14"]
[Board "118"]

1. d4 {[%clk 0:02:59]}  d5 {[%clk 0:02:56]} 2. Nc3 {[%clk 0:02:57]}  Nf6 {[%clk 0:02:51]} 3. Bg5 {[%clk 0:02:56]}  e6 {[%clk 0:02:46]} 4. e4 {[%clk 0:02:56]}  dxe4 {[%clk 0:02:45]} 5. Nxe4 {[%clk 0:02:57]}  Be7 {[%clk 0:02:46]} 6. Bxf6 {[%clk 0:02:57]}  Bxf6 {[%clk 0:02:45]} 7. Nf3 {[%clk 0:02:58]}  Nd7 {[%clk 0:02:45]} 8. c3 {[%clk 0:02:58]}  b6 {[%clk 0:02:45]} 9. Bd3 {[%clk 0:02:59]}  Bb7 {[%clk 0:02:45]} 10. Qc2 {[%clk 0:02:59]}  Be7 {[%clk 0:02:45]} 11. O-O-O {[%clk 0:02:59]}  h6 {[%clk 0:02:40]} 12. Kb1 {[%clk 0:02:34]}  c6 {[%clk 0:02:39]} 13. Rhe1 {[%clk 0:02:05]}  Qc7 {[%clk 0:02:38]} 14. Ned2 {[%clk 0:01:49]}  O-O-O {[%clk 0:02:35]} 15. Nc4 {[%clk 0:01:45]}  Bf6 {[%clk 0:02:30]} 16. Be4 {[%clk 0:01:35]}  Kb8 {[%clk 0:02:28]} 17. Qe2 {[%clk 0:00:50]}  Rhe8 {[%clk 0:02:16]} 18. h3 {[%clk 0:00:47]}  b5 {[%clk 0:02:03]} 19. Ne3 {[%clk 0:00:43]}  a6 {[%clk 0:02:01]} 20. Ng4 {[%clk 0:00:41]}  c5 {[%clk 0:01:52]} 21. Bxb7 {[%clk 0:00:41]}  Kxb7 {[%clk 0:01:42]} 22. dxc5 {[%clk 0:00:36]}  Qxc5 {[%clk 0:01:37]} 23. Qe4+ {[%clk 0:00:33]}  Qc6 {[%clk 0:01:35]} 24. Nxf6 {[%clk 0:00:23]}  Nxf6 {[%clk 0:01:32]} 25. Qxc6+ {[%clk 0:00:23]}  Kxc6 {[%clk 0:01:32]} 26. Rxd8 {[%clk 0:00:24]}  Rxd8 {[%clk 0:01:32]} 27. Ne5+ {[%clk 0:00:25]}  Kb6 {[%clk 0:01:28]} 28. Kc2 {[%clk 0:00:21]}  Rf8 {[%clk 0:01:23]} 29. Rd1 {[%clk 0:00:22]}  Kc7 {[%clk 0:01:23]} 30. g4 {[%clk 0:00:21]}  Nd5 {[%clk 0:01:17]} 31. b3 {[%clk 0:00:19]}  f6 {[%clk 0:01:14]} 32. Ng6 {[%clk 0:00:19]}  Rd8 {[%clk 0:01:12]} 33. Re1 {[%clk 0:00:16]}  e5 {[%clk 0:01:10]} 34. Nh4 {[%clk 0:00:15]}  Ne7 {[%clk 0:01:01]} 35. Ng2 {[%clk 0:00:14]}  Ng6 {[%clk 0:01:00]} 36. Ne3 {[%clk 0:00:13]}  Nf4 {[%clk 0:01:00]} 37. h4 {[%clk 0:00:12]}  Nd3 {[%clk 0:00:50]} 38. Re2 {[%clk 0:00:09]}  g6 {[%clk 0:00:42]} 39. h5 {[%clk 0:00:07]}  gxh5 {[%clk 0:00:41]} 40. gxh5 {[%clk 0:00:08]}  Nf4 {[%clk 0:00:42]} 41. Re1 {[%clk 0:00:08]}  Nxh5 {[%clk 0:00:41]} 42. Rh1 {[%clk 0:00:08]}  Ng7 {[%clk 0:00:26]} 43. Rxh6 {[%clk 0:00:09]}  f5 {[%clk 0:00:24]} 44. Rh7 {[%clk 0:00:09]}  Rd7 {[%clk 0:00:24]} 45. c4 {[%clk 0:00:05]}  f4 {[%clk 0:00:23]} 46. Nd5+ {[%clk 0:00:04]}  Kd6 {[%clk 0:00:22]} 47. Rh6+ {[%clk 0:00:04]}  Kc5 {[%clk 0:00:20]} 48. b4+ {[%clk 0:00:04]}  Kd4 {[%clk 0:00:19]} 49. Nb6 {[%clk 0:00:02]}  Rc7 {[%clk 0:00:18]} 50. c5 {[%clk 0:00:02]}  e4 {[%clk 0:00:18]} 51. Rd6+ {[%clk 0:00:02]}  Ke5 {[%clk 0:00:18]} 52. Rd8 {[%clk 0:00:02]}  Ne6 {[%clk 0:00:18]} 53. Re8 {[%clk 0:00:02]}  e3 {[%clk 0:00:17]} 54. fxe3 {[%clk 0:00:02]}  f3 {[%clk 0:00:18]} 55. Kd1 {[%clk 0:00:02]}  Ke4 {[%clk 0:00:18]} 56. Ke1 {[%clk 0:00:02]}  Kf5 {[%clk 0:00:17]} 57. Kf2 {[%clk 0:00:01]}  Ng5 {[%clk 0:00:17]} 58. Rf8+ {[%clk 0:00:02]}  Ke5 {[%clk 0:00:17]} 59. Re8+ {[%clk 0:00:03]}  Kf6 {[%clk 0:00:17]} 60. Nd5+ {[%clk 0:00:03]}  Kf7 {[%clk 0:00:17]} 61. Nxc7 {[%clk 0:00:03]}  Ne6 {[%clk 0:00:14]} 62. Rxe6 {[%clk 0:00:03]} 1-0


[Site "https://www.chess.com"]

[Event "Titled Tuesday Blitz July 18 Late 2023"]
[White "Rama, Tejas"]
[Black "Garmendiarov"]
[WhiteFideId "30907381"]
[WhiteElo "2454"]
[BlackElo "2300"]
[Result "1-0"]
[Round "7"]
[TimeControl "180+2"]
[Date "2023.07.18"]
[WhiteClock "0:00:13"]
[BlackClock "0:00:00"]
[Board "121"]

1. d4 {[%clk 0:02:56]}  Nf6 {[%clk 0:02:59]} 2. c4 {[%clk 0:02:54]}  g6 {[%clk 0:03:00]} 3. Nf3 {[%clk 0:02:54]}  Bg7 {[%clk 0:03:00]} 4. Nc3 {[%clk 0:02:54]}  d5 {[%clk 0:03:00]} 5. Qb3 {[%clk 0:02:53]}  dxc4 {[%clk 0:02:57]} 6. Qxc4 {[%clk 0:02:54]}  O-O {[%clk 0:02:57]} 7. e4 {[%clk 0:02:54]}  Nc6 {[%clk 0:02:58]} 8. Be2 {[%clk 0:02:54]}  e5 {[%clk 0:02:58]} 9. d5 {[%clk 0:02:54]}  Nd4 {[%clk 0:02:58]} 10. Nxd4 {[%clk 0:02:55]}  exd4 {[%clk 0:02:59]} 11. Qxd4 {[%clk 0:02:55]}  c6 {[%clk 0:02:59]} 12. Qc4 {[%clk 0:02:55]}  b5 {[%clk 0:02:59]} 13. Qxc6 {[%clk 0:02:55]}  Bd7 {[%clk 0:02:59]} 14. Qd6 {[%clk 0:02:52]}  Re8 {[%clk 0:02:58]} 15. e5 {[%clk 0:02:49]}  b4 {[%clk 0:02:45]} 16. Qxb4 {[%clk 0:02:21]}  Rxe5 {[%clk 0:02:43]} 17. O-O {[%clk 0:02:21]}  Rb8 {[%clk 0:02:30]} 18. Qc5 {[%clk 0:01:52]}  Qb6 {[%clk 0:01:35]} 19. Qxb6 {[%clk 0:01:41]}  Rxb6 {[%clk 0:01:36]} 20. Bf3 {[%clk 0:01:41]}  Bg4 {[%clk 0:01:13]} 21. Be3 {[%clk 0:01:25]}  Rxb2 {[%clk 0:01:07]} 22. Bd4 {[%clk 0:01:20]}  Rf5 {[%clk 0:00:55]} 23. Rab1 {[%clk 0:00:40]}  Rxb1 {[%clk 0:00:41]} 24. Rxb1 {[%clk 0:00:40]}  h5 {[%clk 0:00:34]} 25. Rb8+ {[%clk 0:00:25]}  Kh7 {[%clk 0:00:34]} 26. Bxg4 {[%clk 0:00:23]}  Nxg4 {[%clk 0:00:31]} 27. Bxg7 {[%clk 0:00:20]}  Kxg7 {[%clk 0:00:31]} 28. f3 {[%clk 0:00:19]}  Nf6 {[%clk 0:00:24]} 29. d6 {[%clk 0:00:19]}  Rc5 {[%clk 0:00:23]} 30. Ne4 {[%clk 0:00:16]}  Rc1+ {[%clk 0:00:20]} 31. Kf2 {[%clk 0:00:16]}  Rd1 {[%clk 0:00:03]} 32. Rb7 {[%clk 0:00:12]}  Nxe4+ {[%clk 0:00:02]} 33. fxe4 {[%clk 0:00:12]}  Rxd6 {[%clk 0:00:00]} 34. Rxa7 {[%clk 0:00:13]} 1-0


[Site "https://www.chess.com"]

[Event "Titled Tuesday Blitz July 18 Late 2023"]
[White "Melnichuk, Mikhail"]
[Black "Barwinska, Ewa"]
[WhiteFideId "14117533"]
[BlackFideId "21833761"]
[WhiteElo "2452"]
[BlackElo "2293"]
[Result "1-0"]
[Round "7"]
[TimeControl "180+2"]
[Date "2023.07.18"]
[WhiteClock "0:00:35"]
[BlackClock "0:00:02"]
[Board "122"]

1. e4 {[%clk 0:02:57]}  c5 {[%clk 0:02:58]} 2. Nf3 {[%clk 0:02:56]}  d6 {[%clk 0:02:58]} 3. d4 {[%clk 0:02:54]}  cxd4 {[%clk 0:02:59]} 4. Nxd4 {[%clk 0:02:55]}  Nf6 {[%clk 0:03:00]} 5. Nc3 {[%clk 0:02:54]}  a6 {[%clk 0:03:00]} 6. Be3 {[%clk 0:02:53]}  e5 {[%clk 0:03:00]} 7. Nf3 {[%clk 0:02:52]}  Qc7 {[%clk 0:02:53]} 8. h3 {[%clk 0:02:49]}  h6 {[%clk 0:02:52]} 9. g4 {[%clk 0:02:45]}  Be6 {[%clk 0:02:51]} 10. Bg2 {[%clk 0:02:44]}  b5 {[%clk 0:02:44]} 11. a3 {[%clk 0:02:43]}  Be7 {[%clk 0:02:38]} 12. Qd2 {[%clk 0:02:39]}  Nbd7 {[%clk 0:02:38]} 13. g5 {[%clk 0:02:35]}  hxg5 {[%clk 0:02:37]} 14. Nxg5 {[%clk 0:02:36]}  Nb6 {[%clk 0:02:19]} 15. Nxe6 {[%clk 0:02:33]}  fxe6 {[%clk 0:02:20]} 16. Bxb6 {[%clk 0:02:18]}  Qxb6 {[%clk 0:02:18]} 17. O-O-O {[%clk 0:02:16]}  b4 {[%clk 0:02:10]} 18. Na4 {[%clk 0:01:54]}  Qb5 {[%clk 0:01:52]} 19. Qxb4 {[%clk 0:01:49]}  Qxb4 {[%clk 0:01:52]} 20. axb4 {[%clk 0:01:49]}  Rb8 {[%clk 0:01:52]} 21. c3 {[%clk 0:01:46]}  Nh5 {[%clk 0:01:51]} 22. Bf1 {[%clk 0:01:44]}  Ra8 {[%clk 0:01:34]} 23. Nb6 {[%clk 0:01:42]}  Ra7 {[%clk 0:01:34]} 24. Nc8 {[%clk 0:01:39]}  Rd7 {[%clk 0:01:13]} 25. Bxa6 {[%clk 0:01:36]}  Kf7 {[%clk 0:01:12]} 26. Bb5 {[%clk 0:01:30]}  Rdd8 {[%clk 0:01:10]} 27. Nxe7 {[%clk 0:01:28]}  Kxe7 {[%clk 0:01:11]} 28. Rhg1 {[%clk 0:01:24]}  Kf6 {[%clk 0:00:56]} 29. Be2 {[%clk 0:01:15]}  Nf4 {[%clk 0:00:57]} 30. Bg4 {[%clk 0:01:14]}  Nxh3 {[%clk 0:00:52]} 31. Bxh3 {[%clk 0:01:13]}  Rxh3 {[%clk 0:00:53]} 32. Kc2 {[%clk 0:01:09]}  d5 {[%clk 0:00:53]} 33. Rd3 {[%clk 0:01:01]}  Rxd3 {[%clk 0:00:39]} 34. Kxd3 {[%clk 0:01:02]}  Ra8 {[%clk 0:00:39]} 35. c4 {[%clk 0:00:43]}  Rb8 {[%clk 0:00:31]} 36. b5 {[%clk 0:00:39]}  dxc4+ {[%clk 0:00:26]} 37. Kxc4 {[%clk 0:00:40]}  Rc8+ {[%clk 0:00:27]} 38. Kb4 {[%clk 0:00:40]}  Rc2 {[%clk 0:00:26]} 39. b3 {[%clk 0:00:37]}  Rc8 {[%clk 0:00:08]} 40. b6 {[%clk 0:00:37]}  Rb8 {[%clk 0:00:08]} 41. Kb5 {[%clk 0:00:38]}  g5 {[%clk 0:00:08]} 42. Kc6 {[%clk 0:00:37]}  Ke7 {[%clk 0:00:08]} 43. b7 {[%clk 0:00:36]}  Rg8 {[%clk 0:00:02]} 44. Kc7 {[%clk 0:00:35]} 1-0


[Site "https://www.chess.com"]

[Event "Titled Tuesday Blitz July 18 Late 2023"]
[White "BrandonJiang123456"]
[Black "JonSnowNW1"]
[WhiteElo "2276"]
[BlackElo "2419"]
[Result "0-1"]
[Round "7"]
[TimeControl "180+2"]
[Date "2023.07.18"]
[WhiteClock "0:00:27"]
[BlackClock "0:01:24"]
[Board "124"]

1. Nf3 {[%clk 0:03:00]}  d5 {[%clk 0:02:40]} 2. d3 {[%clk 0:03:00]}  Nf6 {[%clk 0:02:39]} 3. Nbd2 {[%clk 0:02:56]}  e6 {[%clk 0:02:38]} 4. e4 {[%clk 0:02:56]}  dxe4 {[%clk 0:02:37]} 5. dxe4 {[%clk 0:02:55]}  b6 {[%clk 0:02:38]} 6. c3 {[%clk 0:02:53]}  Bb7 {[%clk 0:02:38]} 7. Qc2 {[%clk 0:02:54]}  Nbd7 {[%clk 0:02:37]} 8. Be2 {[%clk 0:02:28]}  Be7 {[%clk 0:02:34]} 9. O-O {[%clk 0:02:27]}  O-O {[%clk 0:02:34]} 10. Re1 {[%clk 0:02:25]}  Nc5 {[%clk 0:02:33]} 11. e5 {[%clk 0:02:19]}  Nfe4 {[%clk 0:02:29]} 12. b4 {[%clk 0:02:17]}  Nxd2 {[%clk 0:02:27]} 13. Nxd2 {[%clk 0:02:15]}  Nd7 {[%clk 0:02:23]} 14. Bd3 {[%clk 0:02:13]}  g6 {[%clk 0:02:20]} 15. Be4 {[%clk 0:01:42]}  Bxe4 {[%clk 0:02:20]} 16. Qxe4 {[%clk 0:01:42]}  c5 {[%clk 0:02:16]} 17. a3 {[%clk 0:01:41]}  Qc7 {[%clk 0:02:13]} 18. Nf3 {[%clk 0:01:40]}  Rfd8 {[%clk 0:02:03]} 19. Bh6 {[%clk 0:01:37]}  b5 {[%clk 0:01:50]} 20. Qf4 {[%clk 0:01:30]}  Nb6 {[%clk 0:01:40]} 21. Bg5 {[%clk 0:01:14]}  Nd5 {[%clk 0:01:37]} 22. Qh4 {[%clk 0:01:13]}  Bxg5 {[%clk 0:01:36]} 23. Nxg5 {[%clk 0:01:12]}  h5 {[%clk 0:01:35]} 24. Ne4 {[%clk 0:01:09]}  cxb4 {[%clk 0:01:32]} 25. Nf6+ {[%clk 0:01:02]}  Nxf6 {[%clk 0:01:31]} 26. exf6 {[%clk 0:01:02]}  Rd5 {[%clk 0:01:29]} 27. cxb4 {[%clk 0:00:59]}  Rad8 {[%clk 0:01:27]} 28. Rac1 {[%clk 0:00:48]}  Qxc1 {[%clk 0:01:25]} 29. Rf1 {[%clk 0:00:27]}  Rd1 {[%clk 0:01:24]} 0-1


[Site "https://www.chess.com"]

[Event "Titled Tuesday Blitz July 18 Late 2023"]
[White "Yolosz"]
[Black "De Souza, Cristiano Gomes"]
[BlackFideId "2151758"]
[WhiteElo "2395"]
[BlackElo "2248"]
[Result "1-0"]
[Round "7"]
[TimeControl "180+2"]
[Date "2023.07.18"]
[WhiteClock "0:01:58"]
[BlackClock "0:01:31"]
[Board "128"]

1. d4 {[%clk 0:03:00]}  Nf6 {[%clk 0:02:42]} 2. Bf4 {[%clk 0:03:00]}  d6 {[%clk 0:02:40]} 3. e3 {[%clk 0:02:59]}  g6 {[%clk 0:02:39]} 4. Nc3 {[%clk 0:02:57]}  Bg7 {[%clk 0:02:36]} 5. h4 {[%clk 0:02:58]}  c6 {[%clk 0:02:30]} 6. Bd3 {[%clk 0:02:46]}  b5 {[%clk 0:02:22]} 7. h5 {[%clk 0:02:44]}  gxh5 {[%clk 0:02:17]} 8. Rxh5 {[%clk 0:02:45]}  Nxh5 {[%clk 0:02:14]} 9. Qxh5 {[%clk 0:02:43]}  Nd7 {[%clk 0:02:12]} 10. Qg5 {[%clk 0:02:28]}  Bf6 {[%clk 0:02:06]} 11. Qh6 {[%clk 0:02:20]}  b4 {[%clk 0:02:04]} 12. Ne4 {[%clk 0:02:19]}  Qb6 {[%clk 0:01:58]} 13. Bxd6 {[%clk 0:02:05]}  exd6 {[%clk 0:01:40]} 14. Nxf6+ {[%clk 0:02:04]}  Nxf6 {[%clk 0:01:38]} 15. Qxf6 {[%clk 0:02:04]}  Qd8 {[%clk 0:01:38]} 16. Qxh8+ {[%clk 0:02:03]}  Kd7 {[%clk 0:01:37]} 17. Qxd8+ {[%clk 0:02:01]}  Kxd8 {[%clk 0:01:36]} 18. Bxh7 {[%clk 0:02:01]}  Kc7 {[%clk 0:01:31]} 19. Be4 {[%clk 0:01:58]} 1-0


[Site "https://www.chess.com"]

[Event "Titled Tuesday Blitz July 18 Late 2023"]
[White "Eggleston, Thomas A"]
[Black "Francisco_Ferrari"]
[WhiteFideId "412139"]
[WhiteElo "2362"]
[BlackElo "2188"]
[Result "1-0"]
[Round "7"]
[TimeControl "180+2"]
[Date "2023.07.18"]
[WhiteClock "0:01:48"]
[BlackClock "0:00:20"]
[Board "131"]

1. e4 {[%clk 0:03:00]}  a6 {[%clk 0:02:52]} 2. d4 {[%clk 0:03:00]}  e6 {[%clk 0:02:47]} 3. Bd3 {[%clk 0:02:59]}  d5 {[%clk 0:02:46]} 4. Nc3 {[%clk 0:02:59]}  Nf6 {[%clk 0:02:44]} 5. e5 {[%clk 0:02:46]}  Nfd7 {[%clk 0:02:43]} 6. Nce2 {[%clk 0:02:46]}  c5 {[%clk 0:02:40]} 7. c3 {[%clk 0:02:46]}  Nc6 {[%clk 0:02:38]} 8. Nf3 {[%clk 0:02:42]}  b5 {[%clk 0:02:34]} 9. O-O {[%clk 0:02:37]}  Be7 {[%clk 0:02:34]} 10. Nf4 {[%clk 0:02:35]}  O-O {[%clk 0:02:26]} 11. g3 {[%clk 0:02:35]}  b4 {[%clk 0:02:13]} 12. h4 {[%clk 0:02:33]}  Rb8 {[%clk 0:02:05]} 13. Nh5 {[%clk 0:02:33]}  bxc3 {[%clk 0:01:33]} 14. bxc3 {[%clk 0:02:33]}  cxd4 {[%clk 0:01:30]} 15. cxd4 {[%clk 0:02:27]}  f6 {[%clk 0:01:07]} 16. Re1 {[%clk 0:02:12]}  fxe5 {[%clk 0:01:03]} 17. dxe5 {[%clk 0:02:11]}  Nc5 {[%clk 0:00:35]} 18. Bxh7+ {[%clk 0:02:01]}  Kxh7 {[%clk 0:00:33]} 19. Qc2+ {[%clk 0:01:51]}  Kg8 {[%clk 0:00:31]} 20. Ng5 {[%clk 0:01:49]}  Nd4 {[%clk 0:00:20]} 21. Qh7# {[%clk 0:01:48]} 1-0


[Site "https://www.chess.com"]